Cogmind - Beta 16.1 @@@ ROGUE MODE // 2026.03.08 @ 20:43:57 Player: Byrnorthil Result: Destroyed by S-27 Virus with Autogun Performance ------------- Evolutions (3) 1500 Regions Visited (8) 1600 Robots Destroyed (56) 280 Value Destroyed (1578) 1578 Prototype IDs (18) 360 Alien Tech Used (0) 0 Bonus (4238) 4238 TOTAL SCORE: 9556 Bonus ------- Follower Combat Kills 2638 Entered Garrisons 600 Used RIF Installer 1000 Cogmind --------- Core Integrity 0/700 Matter 200/300 Energy 100/100 System Corruption 0% Temperature Cool (0) Movement Core (50) Location -7/Garrison Parts ------- > --- POWER (1) -------- (None) > --- PROPULSION (2) --- (None) > --- UTILITY (4) ------ (None) > --- WEAPON (6) ------- (None) > --- INVENTORY (5) ---- Wheel Improved Heat Sink Compact Matter Pod (0) Seismic Detector High-powered Tractor Beam Peak State ------------ > --- POWER ------------ Enhanced Nuclear Core > --- PROPULSION ------- Compact Wheel Compact Wheel > --- UTILITY ---------- Large Storage Unit Relay Coupler [NC] Relay Coupler [Sentry] High-powered Tractor Beam > --- WEAPON ----------- 1B-0RG's Assimilator Remote Datajack > --- INVENTORY -------- Light Deuterium Engine Improved Deuterium Engine Enhanced Nuclear Core Wheel Armored Wheel Improved Heat Sink Compact Matter Pod Compact Matter Pod Compact Matter Pod Compact Matter Pod Seismic Detector Hardened Light Armor Plating Improved Medium Armor Plating Relay Coupler [Swarmer] Relay Coupler [Hunter] [Rating: 89] Favorites ----------- Power Improved Ion Engine Engine Improved Ion Engine Power Core Enhanced Nuclear Core Propulsion Light Treads Treads Light Treads Wheel Wheel Utility Large Storage Unit Device High-powered Tractor Beam Storage Large Storage Unit Hackware Relay Coupler [NC] Protection Hardened Light Armor Plating Weapon 1B-0RG's Assimilator Energy Gun Small Laser Energy Cannon Powered Cannon Ballistic Cannon Improved Light Cannon Special Weapon Remote Datajack Special Melee Weapon 1B-0RG's Assimilator Build | -11 -10 -10 -8 -8 -8 -8 -7 -7 ------- Run | Yrd Mat Sub Mat Gar Mat Gar Fac Gar Slots Evolved 6 | . . . 4 . . . 2 . Power . | . . . . . . . . . Propulsion . | . . . . . . . . . Utility 2 | . . . 1 . . . 1 . Weapon 4 | . . . 3 . . . 1 . Parts Attached 62 | 7 14 5 10 1 6 4 10 5 Power 12 | 1 3 1 1 . 2 1 2 1 Engine 9 | 1 3 1 1 . 1 . 1 1 Core 3 | . . . . . 1 1 1 . Reactor . | . . . . . . . . . Propulsion 21 | 2 4 . 6 . 3 1 4 1 Treads 13 | 2 4 . 6 . 1 . . . Leg . | . . . . . . . . . Wheel 8 | . . . . . 2 1 4 1 Hover . | . . . . . . . . . Flight . | . . . . . . . . . Utility 17 | 2 3 1 2 1 1 2 3 2 Device 4 | 1 2 . 1 . . . . . Storage 4 | 1 1 . . . 1 1 . . Processor . | . . . . . . . . . Hackware 3 | . . . . . . . 2 1 Protection 6 | . . 1 1 1 . 1 1 1 Artifact . | . . . . . . . . . Weapon 12 | 2 4 3 1 . . . 1 1 Energy Gun 5 | 2 2 . . . . . . 1 Energy Cannon 3 | . . 3 . . . . . . Ballistic Gun . | . . . . . . . . . Ballistic Cannon 2 | . 2 . . . . . . . Launcher . | . . . . . . . . . Special Weapon 1 | . . . . . . . 1 . Impact Weapon . | . . . . . . . . . Slashing Weapon . | . . . . . . . . . Piercing Weapon . | . . . . . . . . . Special Melee Weapon 1 | . . . 1 . . . . . Unidentified Prototypes 1 | . . . . . . . 1 . Parts Lost 20 | . 1 . . 2 2 3 1 11 Power 5 | . . . . 1 . 2 . 2 Propulsion 6 | . . . . . 1 1 1 3 Utility 5 | . . . . 1 1 . . 3 Weapon 4 | . 1 . . . . . . 3 Highest Loss Streak 9 | . 1 . . 2 1 1 1 9 To Critical Strikes . | . . . . . . . . . Average Backups 12 | 1 9 13 10 13 12 14 14 13 Power 1 | . 1 . . . . 1 2 2 Propulsion 1 | . 1 2 3 3 . . 1 2 Utility 7 | . 2 5 5 9 10 10 9 8 Weapon 1 | . 3 5 . . . . . . Tool/Special . | . . . . . . . . . Unused Backups 27 | . 11 2 5 . . 3 . 6 Power 4 | . 3 . . . . . . 1 Propulsion 4 | . 2 . 2 . . . . . Utility 11 | . 3 . . . . 3 . 5 Weapon 8 | . 3 2 3 . . . . . Tool/Special . | . . . . . . . . . Average Slot Usage (%) 73 | . 99 93 65 62 62 62 68 55 Engine 9 | . 14 19 14 8 6 6 2 . Core 1 | . . . . . 2 2 4 4 Treads 13 | . 28 26 16 18 4 . . . Wheel 6 | . . . . . 13 17 14 13 Device 8 | . 14 4 8 9 8 5 5 3 Storage 12 | . 14 13 8 9 15 18 11 6 Hackware 1 | . . . . . . . 7 8 Protection 4 | . . 8 8 9 2 3 3 5 Energy Gun 3 | . 15 . . . . . . . Energy Cannon 2 | . . 19 5 . . . . . Ballistic Cannon 2 | . 12 . . . . . . . Special Weapon 1 | . . . . . . . 7 4 Special Melee Weapon 5 | . . . 2 9 9 9 7 3 Peak Build Rating 89 | 7 14 31 83 83 82 81 89 87 Average Rating 56 | 5 10 21 51 82 78 78 86 53 On Entrance 51 | . 7 14 31 83 82 78 79 87 Avg Prop Armor Cover (%) . | . . . . . . . . . Naked Turns 13 | . . . . . . . . 13 Heaviest Build 94 | 13 36 48 88 90 90 86 94 92 Greatest Support 56 | 40 40 40 56 44 44 26 32 26 Greatest Overweight (x) 8 | . . 1 1 2 8 8 5 3 Average Overweight (x) 1 | . . . . 1 3 3 2 1 Largest Inventory Capacity 15 | 8 15 15 15 15 15 15 15 15 Average Capacity 14 | 7 11 15 15 15 15 15 15 14 Most Carried 15 | 2 15 15 15 15 15 15 15 15 Average Carried 12 | 1 9 14 13 13 12 14 14 13 Final Capacity 15 | 8 15 15 15 15 15 15 15 5 Final Carried 15 | 2 15 15 15 13 15 12 15 5 Class Distribution -------------------- 62% | Mutant 37% | Bothacker-Mutant Dominant Class ---------------- Mutant | -10/Materials Mutant | -10/Subcaves Mutant | -8/Materials Mutant | -8/Garrison Bothacker-Mutant | -8/Materials Bothacker-Mutant | -8/Garrison Bothacker-Mutant | -7/Factory Mutant | -7/Garrison Resources | -11 -10 -10 -8 -8 -8 -8 -7 -7 ----------- Run | Yrd Mat Sub Mat Gar Mat Gar Fac Gar Matter Collected 5158 | 205 207 60 412 1196 852 1039 1001 186 Remotely 2939 | . . . 158 1168 852 20 570 171 Salvage Created 1981 | 25 738 137 1081 . . . . . Parts 116 | 1 43 9 63 . . . . . Haulers Intercepted 2 | . 1 . 1 . . . . . Recyclers Shooed 3 | . 1 . 2 . . . . . Parts Field Recycled . | . . . . . . . . . Retrieved Matter . | . . . . . . . . . Parts Self-Destructed 2 | . . 2 . . . . . . Prevented . | . . . . . . . . . Parts Restored . | . . . . . . . . . Kills | -11 -10 -10 -8 -8 -8 -8 -7 -7 ------- Run | Yrd Mat Sub Mat Gar Mat Gar Fac Gar Combat Hostiles Destroyed 45 | . 18 3 24 . . . . . Guns 18 | . 18 . . . . . . . Cannons 24 | . . 3 21 . . . . . Classes Destroyed 9 | 1 6 1 1 . . . . . Tunneler 1 | 1 . . . . . . . . Hauler 2 | . 1 . 1 . . . . . Recycler 1 | . 1 . . . . . . . Mechanic 1 | . 1 . . . . . . . Watcher 6 | . 3 . 3 . . . . . Swarmer 15 | . 6 . 9 . . . . . Grunt 20 | . 12 . 8 . . . . . Sentry 7 | . . . 7 . . . . . Subdweller 3 | . . 3 . . . . . . Best Kill Streak 7 | 1 6 3 7 . . . . . Combat Bots Only 6 | . 6 3 6 . . . . . Max Kills in Single Turn 1 | 1 1 1 1 . . . . . Gunslinging . | . . . . . . . . . Exploded . | . . . . . . . . . Melee . | . . . . . . . . . Uniques/NPCs Destroyed . | . . . . . . . . . Combat | -11 -10 -10 -8 -8 -8 -8 -7 -7 -------- Run | Yrd Mat Sub Mat Gar Mat Gar Fac Gar Hostile Shots Fired 545 | . 81 9 86 78 14 40 16 221 Missed 159 | . 23 1 19 16 7 4 7 82 Hits 386 | . 58 8 67 62 7 36 9 139 Melee 2 | . . . . . . 2 . . Projectile 384 | . 58 8 67 62 7 34 9 139 AOE 1 | . . . . . . 1 . . Critical Strikes 10 | . . . 3 4 . . . 3 Damage Taken 5284 | . 620 194 733 1017 118 534 291 1777 Core 1325 | . 109 73 136 140 . 159 64 644 Absorbed by Shields 18 | . . . . 18 . . . . Regen/Repaired (Parts) 606 | . . . 35 340 38 142 42 9 Core Remaining (%) 49 | 100 . 27 . . . 20 . . Volleys Fired 167 | 2 62 10 71 . . . 13 9 Largest 2 | 2 2 2 1 . . . 1 1 Hottest 136 | 80 80 136 40 . . . 5 50 Shots Fired 238 | 4 123 18 71 . . . 13 9 Gun 123 | 4 118 . . . . . . 1 Cannon 94 | . 5 18 71 . . . . . Launcher . | . . . . . . . . . Special 21 | . . . . . . . 13 8 Kinetic 5 | . 5 . . . . . . . Thermal 211 | 4 118 18 71 . . . . . Explosive . | . . . . . . . . . Electromagnetic 1 | . . . . . . . . 1 Robot Hit Streak 25 | 1 14 18 25 . . . 4 5 Robot Miss Streak 4 | 1 3 . 4 . . . 1 2 Penetration Max . | . . . . . . . . . Secondary Targets . | . . . . . . . . . Shots Hit Robots 167 | 2 83 16 51 . . . 9 6 Core Hits 68 | 1 37 6 24 . . . . . Critical Kills 3 | . . . 3 . . . . . Critical Parts Destroyed . | . . . . . . . . . Critical Strikes 3 | . . . 3 . . . . . Meltdown 3 | . . . 3 . . . . . Melee Attacks . | . . . . . . . . . Impact . | . . . . . . . . . Slashing . | . . . . . . . . . Piercing . | . . . . . . . . . Sneak Attacks . | . . . . . . . . . Combat Hostiles . | . . . . . . . . . Follow-up Attacks . | . . . . . . . . . Damage Inflicted 4096 | 22 1025 327 2702 . . . . 20 Guns 964 | 22 922 . . . . . . 20 Cannons 3070 | . 46 327 2697 . . . . . Explosions . | . . . . . . . . . Melee . | . . . . . . . . . Ramming 62 | . 57 . 5 . . . . . Kinetic 46 | . 46 . . . . . . . Thermal 3968 | 22 922 327 2697 . . . . . Explosive . | . . . . . . . . . Electromagnetic 20 | . . . . . . . . 20 Impact . | . . . . . . . . . Slashing . | . . . . . . . . . Piercing . | . . . . . . . . . Highest Corruption 1 | . . . . . . 1 . . Average Corruption 1 | . . . . . . 1 . . Corruption Purged . | . . . . . . . . . Corruption Blocked . | . . . . . . . . . Effects 4 | . . . . . . 4 . . Matter Fused 1 | . . . . . . 1 . . Energy Discharges 2 | . . . . . . 2 . . Data Loss (major) 1 | . . . . . . 1 . . Overload Shots . | . . . . . . . . . Overflow Damage 230 | . . . 230 . . . . . Projectiles 230 | . . . 230 . . . . . Explosions . | . . . . . . . . . Melee . | . . . . . . . . . Knockbacks 2 | . 2 . . . . . . . Impact 1 | . 1 . . . . . . . Kinetic 1 | . 1 . . . . . . . Secondary . | . . . . . . . . . Self-Inflicted Damage . | . . . . . . . . . Shots . | . . . . . . . . . Rammed 13 | . 9 . 4 . . . . . Targets Rammed 16 | . 12 . 4 . . . . . Kicked . | . . . . . . . . . Crushed 3 | . 3 . . . . . . . Highest Temperature 249 | 36 192 249 44 21 . . . 39 Average Temperature 47 | 20 57 116 16 14 . . . 13 Received Heat Transfer 1596 | . 294 27 252 420 27 21 18 537 Effects 1 | . . 1 . . . . . . Energy Bleed 1 | . . 1 . . . . . . Siege Activations . | . . . . . . . . . Martial Activations . | . . . . . . . . . Shielding Activations . | . . . . . . . . . Robots Disrupted . | . . . . . . . . . Combat Hostiles . | . . . . . . . . . Robots Corrupted . | . . . . . . . . . Combat Hostiles . | . . . . . . . . . Parts Fried . | . . . . . . . . . Impact Corruptions . | . . . . . . . . . Robots Melted 3 | . . . 3 . . . . . Combat Hostiles 3 | . . . 3 . . . . . Parts Melted 10 | . 5 1 4 . . . . . Heat Transferred 2717 | 50 2075 592 . . . . . . Parts Sabotaged . | . . . . . . . . . Parts Stolen . | . . . . . . . . . Parts Stripped . | . . . . . . . . . Power Chain Reactions . | . . . . . . . . . Alert | -11 -10 -10 -8 -8 -8 -8 -7 -7 ------- Run | Yrd Mat Sub Mat Gar Mat Gar Fac Gar Maximum Alert Level 3 | . 1 . 2 3 2 3 1 1 Low Security (%) 31 | 100 96 . 51 . . . . . Level 1 31 | . 3 . 27 13 46 . 100 100 Level 2 30 | . . . 20 55 53 95 . . Level 3 6 | . . . . 31 . 4 . . Level 4 . | . . . . . . . . . Level 5 . | . . . . . . . . . High Security . | . . . . . . . . . Max Security . | . . . . . . . . . Peak Influence 723 | 5 229 . 484 723 636 708 388 362 Initial 409 | . . . . 310 352 409 371 219 Average 328 | . 72 . 229 585 414 530 330 267 Influence Increases 4124 | 5 637 . 858 613 666 489 503 353 Destroy 0b10 Robot/C 2640 | . 360 . 600 500 440 380 280 80 Destroy 0b10 Robot/NC 90 | 5 30 . 20 . 20 . 10 5 Destroy Leader 440 | . 78 . 148 10 104 20 60 20 Allied During Kill 334 | . . . 22 83 100 72 37 20 Successful Hack 142 | . 64 . 24 . . 14 26 14 Select Force Hacks 60 | . 60 . . . . . . . Disable Machine 60 | . . . 30 . . . 30 . Destroy Structure 58 | . . . 14 5 2 3 30 4 Lose Combat Pursuer 300 | . 45 . . 15 . . 30 210 Influence Decreases 3762 | 5 637 . 380 368 759 411 897 305 Entered New Map 1192 | . . . . 168 371 221 337 95 Time Decay 1640 | 5 477 . 380 . 368 . 410 . Lost Part 200 | . 10 . . 20 20 30 10 110 Lost Ally 580 | . . . . 180 . 160 140 100 Purge Threat 150 | . 150 . . . . . . . Squads Dispatched 12 | . 4 . 3 . 3 . 2 . Investigation 5 | . 3 . . . 2 . . . Extermination 2 | . . . . . . . 2 . Reinforcement 5 | . 1 . 3 . 1 . . . Assault . | . . . . . . . . . Garrison . | . . . . . . . . . Intercept . | . . . . . . . . . Searches Triggered . | . . . . . . . . . Construction Impeded . | . . . . . . . . . Haulers Reinforced . | . . . . . . . . . Active Scanning Responses 1 | . . . . 1 . . . . Cargo Convoy Interrupts . | . . . . . . . . . Stealth | -11 -10 -10 -8 -8 -8 -8 -7 -7 --------- Run | Yrd Mat Sub Mat Gar Mat Gar Fac Gar Distress Signals 4 | . . . 2 . 2 . . . Communications Jammed 30 | . . . . . . . 1 29 Distress Signals 29 | . . . . . . . . 29 Times Spotted 203 | . 33 4 35 31 21 30 21 28 Peak Tracking Total 13 | . 5 3 6 10 5 8 4 13 Tactical Retreats 8 | . 1 . . 1 . . 1 5 Traps | -11 -10 -10 -8 -8 -8 -8 -7 -7 ------- Run | Yrd Mat Sub Mat Gar Mat Gar Fac Gar Traps Triggered 11 | . . . . 5 1 3 1 1 Indirectly . | . . . . . . . . . Trap Hack Attempts . | . . . . . . . . . Triggered . | . . . . . . . . . Disarmed . | . . . . . . . . . Reprogrammed . | . . . . . . . . . Reused . | . . . . . . . . . Traps Extracted . | . . . . . . . . . Installed . | . . . . . . . . . Triggered . | . . . . . . . . . Machines | -11 -10 -10 -8 -8 -8 -8 -7 -7 ---------- Run | Yrd Mat Sub Mat Gar Mat Gar Fac Gar Machines Disabled 5 | . . 1 2 . . . 2 . Max in Single Turn 1 | . . 1 1 . . . . . Garrison Access 1 | . . . . . . . 1 . Machines Repaired . | . . . . . . . . . Machines Dismantled . | . . . . . . . . . Machines Sabotaged . | . . . . . . . . . Overloaded Fab Kills . | . . . . . . . . . Hacking | -11 -10 -10 -8 -8 -8 -8 -7 -7 --------- Run | Yrd Mat Sub Mat Gar Mat Gar Fac Gar Machines Accessed 37 | . 8 1 7 1 6 3 10 1 Terminals 21 | . 6 . 4 1 3 3 3 1 Fabricators 2 | . . . . . . . 2 . Repair Stations 4 | . . . 1 . 1 . 2 . Recycling Units 3 | . 2 . . . . . 1 . Scanalyzers 2 | . . . 1 . 1 . . . Garrison Access 4 | . . . 1 . 1 . 2 . Total Hacks 106 | . 37 1 24 2 15 3 22 2 Successful 63 | . 27 1 17 . 8 1 8 1 Failed 41 | . 9 . 7 2 6 2 14 1 Catastrophic 12 | . 1 . . 1 2 1 7 . Database Lockouts 2 | . 1 . . . 1 . . . Manual 57 | . 29 . 16 . 9 . 3 . Terminals 66 | . 31 . 12 2 10 3 6 2 Fabricators 5 | . . . . . . . 5 . Repair Stations 9 | . . . 3 . 2 . 4 . Recycling Units 8 | . 6 . . . . . 2 . Scanalyzers 6 | . . . 4 . 2 . . . Garrison Access 11 | . . . 5 . 1 . 5 . Terminal Hacks 16 | . 13 1 . . . 1 . 1 Robot Analysis 4 | . 4 . . . . . . . Prototype ID Bank 2 | . 2 . . . . . . . Branch Access Points 1 | . 1 . . . . . . . Emergency Access Points 1 | . . . . . . . . 1 Alert Level 1 | . 1 . . . . . . . Unreport Threat 1 | . 1 . . . . . . . Locate Traps 2 | . 2 . . . . . . . Zone Layout 2 | . 2 . . . . . . . Patrol Navigation 1 | . . . . . . 1 . . Proto ID Catalog 1 | . . 1 . . . . . . Fabricator Hacks 2 | . . . . . . . 2 . Network Status 1 | . . . . . . . 1 . Build 1 | . . . . . . . 1 . Repair Station Hacks 6 | . . . 2 . 2 . 2 . Scan Component 3 | . . . 1 . 1 . 1 . Repair 3 | . . . 1 . 1 . 1 . Recycling Unit Hacks 3 | . 3 . . . . . . . Report Inventory 2 | . 2 . . . . . . . Retrieve Components 1 | . 1 . . . . . . . Scanalyzer 5 | . . . 4 . 1 . . . Insert Component 1 | . . . 1 . . . . . Retrieve Study 4 | . . . 3 . 1 . . . Garrison Access Hacks 5 | . . . 1 . 1 . 3 . Unlock Access 4 | . . . 1 . 1 . 2 . Seal Access 1 | . . . . . . . 1 . Unauthorized Hacks 26 | . 11 . 10 . 4 . 1 . Terminals 20 | . 9 . 7 . 4 . . . Botnet 6 | . 2 . 2 . 2 . . . Operators 2 | . 1 . 1 . . . . . Skim 12 | . 6 . 4 . 2 . . . Fabricators . | . . . . . . . . . Repair Stations . | . . . . . . . . . Recycling Units 2 | . 2 . . . . . . . Tunnel 2 | . 2 . . . . . . . Scanalyzers . | . . . . . . . . . Garrison Access 4 | . . . 3 . . . 1 . Broadcast 1 | . . . 1 . . . . . Restock 2 | . . . 1 . . . 1 . Watchers 1 | . . . 1 . . . . . Data Cores Recovered . | . . . . . . . . . Used . | . . . . . . . . . Hacking Detections 33 | . 7 . 7 1 5 3 9 1 Full Trace Events 3 | . 1 . . . 2 . . . Feedback Events . | . . . . . . . . . Feedback Blocked . | . . . . . . . . . Robot Schematics Acquired . | . . . . . . . . . Robots Built . | . . . . . . . . . Authchips . | . . . . . . . . . Time . | . . . . . . . . . Total Robot Build Rating . | . . . . . . . . . Part Schematics Acquired . | . . . . . . . . . Parts Built 2 | . . . . . . . 2 . Authchips . | . . . . . . . . . Time 106 | . . . . . . . 106 . Total Part Build Rating 12 | . . . . . . . 12 . Part Studies Acquired 3 | . . . 2 . 1 . . . Parts Repaired 3 | . . . 1 . 1 . 1 . Time 95 | . . . 38 . 38 . 19 . Parts Recycled . | . . . . . . . . . Recycled Matter . | . . . . . . . . . Retrieved Matter . | . . . . . . . . . Retrieved Components 10 | . 10 . . . . . . . Parts Scanalyzed . | . . . . . . . . . Part Schematics Acquired . | . . . . . . . . . Parts Damaged . | . . . . . . . . . Bothacking | -11 -10 -10 -8 -8 -8 -8 -7 -7 ------------ Run | Yrd Mat Sub Mat Gar Mat Gar Fac Gar Used RIF Installer 2 | . . . . 1 . 1 . . Signal Jammer 1 | . . . . . . 1 . . Robots Hacked 13 | . . . . . . . 8 5 Non-combat 3 | . . . . . . . 2 1 Combat 10 | . . . . . . . 6 4 Robot Hacks Applied 14 | . . . . . . . 9 5 parse_system 8 | . . . . . . . 6 2 find_chute 1 | . . . . . . . 1 . mark_security 1 | . . . . . . . 1 . overload_power 1 | . . . . . . . . 1 amplify_resonance 1 | . . . . . . . . 1 overwrite_iff 1 | . . . . . . . . 1 formatsys_high 1 | . . . . . . . 1 . Relay Couplers Released 8 | . . . 4 . . . . 4 Programmers 8 | . . . 4 . . . . 4 Attached 3 | . . . . . . . 2 1 Fabnet Peak Effective % . | . . . . . . . . . Robots Rewired 3 | . . . . 3 . . . . Allies Hacked . | . . . . . . . . . Hacks Repelled . | . . . . . . . . . Allies | -11 -10 -10 -8 -8 -8 -8 -7 -7 -------- Run | Yrd Mat Sub Mat Gar Mat Gar Fac Gar Total Allies 5 | . . . . 3 . . 1 1 Largest Group 3 | . . . . 3 . . 1 1 Highest-Rated Group 32 | . . . . 15 . . 32 12 Highest-Rated Ally 32 | . . . . 5 . . 32 12 Total Orders . | . . . . . . . . . Ally Attacks 537 | . . . 42 150 155 89 81 20 Total Damage 10636 | . . . 666 2070 2287 2130 2708 775 Kills 103 | . . . 6 26 26 20 20 5 Allies Corrupted 4 | . . . . . . 2 2 . Allies Melted 1 | . . . . . . . . 1 Borg Created 35 | . . . 3 9 3 10 9 1 Largest Collective 5 | . . . 3 4 4 5 3 1 Intel | -11 -10 -10 -8 -8 -8 -8 -7 -7 ------- Run | Yrd Mat Sub Mat Gar Mat Gar Fac Gar Active Infowar (turns) 1072 | 43 317 146 276 4 . 286 . . Seismic 1072 | 43 317 146 276 4 . 286 . . Robot Analysis Total 4 | . 4 . . . . . . . Derelict Logs Recovered . | . . . . . . . . . Drone Launches . | . . . . . . . . . Drone Recoveries . | . . . . . . . . . Exploration | -11 -10 -10 -8 -8 -8 -8 -7 -7 ------------- Run | Yrd Mat Sub Mat Gar Mat Gar Fac Gar Turns Passed 7206 | 94 1567 460 996 1197 852 804 995 241 Spaces Moved 3790 | 48 795 211 392 488 502 510 638 206 Core 27 | 2 . . . . . . . 25 Treads 2006 | 46 795 211 392 488 74 . . . Legs . | . . . . . . . . . Wheels 1757 | . . . . . 428 510 638 181 Hover . | . . . . . . . . . Flight . | . . . . . . . . . Fastest Speed 50 | 50 160 160 152 185 130 130 130 50 Average Speed 156 | 155 160 195 166 216 146 130 130 101 Slowest Speed 240 | 160 160 240 240 225 225 190 175 130 Overloaded Moves . | . . . . . . . . . Propulsion Burnouts . | . . . . . . . . . Robots Hopped . | . . . . . . . . . Potential Cave-ins . | . . . . . . . . . Cave-ins Triggered . | . . . . . . . . . Exploration Rate (%) 45 | 4 88 10 65 74 44 65 21 35 Regions Visited 8 Branch Regions 1 Pre-discovered Areas 2 | . 2 . . . . . . . Known Exits Taken 5 | . 1 1 1 . 1 . 1 . Unknown Exits Taken 1 | 1 . . . . . . . . Scrap Searched 3 | . . 3 . . . . . . Spaces Dug . | . . . . . . . . . Terrain Destroyed 13 | . . . 13 . . . . . Melee . | . . . . . . . . . Projectile 13 | . . . 13 . . . . . AOE . | . . . . . . . . . Terrain Rammed . | . . . . . . . . . Walls Destroyed . | . . . . . . . . . Machines Disabled . | . . . . . . . . . Actions | -11 -10 -10 -8 -8 -8 -8 -7 -7 --------- Run | Yrd Mat Sub Mat Gar Mat Gar Fac Gar Total 4805 | 60 974 242 675 611 610 633 770 230 Wait 481 | 2 41 9 156 47 88 64 74 . Move 3783 | 47 794 210 391 487 502 509 637 206 Hop . | . . . . . . . . . Pick Up 68 | 2 28 1 18 . 5 7 7 . Fast Attach 17 | 7 2 1 . . 3 1 2 1 Attach 22 | . 2 1 5 2 2 3 3 4 Detach 1 | . . . 1 . . . . . Swap 43 | . 10 4 11 1 2 4 10 1 Drop 59 | . 23 6 13 . 5 8 4 . Fire 167 | 2 62 10 71 . . . 13 9 Melee . | . . . . . . . . . Ram . | . . . . . . . . . Kick . | . . . . . . . . . Crush 16 | . 12 . 4 . . . . . Escape Stasis 52 | . . . . 9 . 27 8 8 Rewire 60 | . . . 1 56 . . 3 . Trap . | . . . . . . . . . Miscellaneous 36 | . . . 4 9 3 10 9 1 Route ------- -11/Scrapyard -10/Materials (discovered 6 exits: *Mat x3 / *Min x2 / *Sub) -10/Subcaves (discovered 3 exits: *Mat x2 / Rec) -8/Materials (discovered 2 exits: *Fac / Gar) -8/Garrison (discovered 3 exits: *Mat x3) -8/Materials (discovered 2 exits: *Fac / Gar) -8/Garrison (discovered 2 exits: *Fac x2) -7/Factory -7/Garrison History --------- Turn | Location | Event 7 | -11/Scrapyard | Discovered new exit (range 16) 95 | -11/Scrapyard | Entered Materials 288 | -10/Materials | Discovered new exit (range 3) 305 | -10/Materials | Build established: Mutant 698 | -10/Materials | Discovered new exit (range 6) 737 | -10/Materials | Discovered new exit (range 9) 771 | -10/Materials | Discovered new exit (range 15) 1038 | -10/Materials | Identified exit to Mines 1252 | -10/Materials | Central database locked down 1387 | -10/Materials | Learned 4 Recycling zone layouts 1439 | -10/Materials | Identified exit to Materials 1479 | -10/Materials | Identified exit to Subcaves 1531 | -10/Materials | Learned 2 Mines zone layouts 1599 | -10/Materials | Learned 4 Subcaves zone layouts 1662 | -10/Materials | Entered Subcaves 1663 | -10/Subcaves | Approached by a straggling Scientist 1663 | -10/Subcaves | Identified exit to Materials 1663 | -10/Subcaves | Identified exit to Recycling 1835 | -10/Subcaves | Visited 4L-MR0's lab 1840 | -10/Subcaves | Core integrity fell below 50% 1894 | -10/Subcaves | Found Powered Cannon 1895 | -10/Subcaves | Attached Powered Cannon, gained temporary slot: Power 1903 | -10/Subcaves | Found Prototype Special Melee Weapon 2122 | -10/Subcaves | Entered Materials 2122 | -8/Materials | Evolved 4 slots: Utility x1, Weapon x3 2397 | -8/Materials | Identified 1B-0RG's Assimilator 2487 | -8/Materials | Repaired Adv. Treads+ 2863 | -8/Materials | Assimilating Trooper 3a into Collective. 2875 | -8/Materials | Assimilating Trooper 3b into Collective. 2987 | -8/Materials | Discovered new exit (range 5) 2999 | -8/Materials | Identified exit to Factory 2999 | -8/Materials | Assimilating Shepherd 3a into Collective. 3020 | -8/Materials | Identified exit to Garrison 3118 | -8/Materials | Entered Garrison 3118 | -8/Garrison | Accompanied by 3 allies 3164 | -8/Garrison | Triggered checkpoint 3290 | -8/Garrison | Assimilating Defender 3a into Collective. 3302 | -8/Garrison | Assimilating Pest 3a into Collective. 3307 | -8/Garrison | Assimilating Pest 3b into Collective. 3310 | -8/Garrison | Assimilating Pest 3c into Collective. 3315 | -8/Garrison | Assimilating Bruiser 3a into Collective. 3332 | -8/Garrison | Assimilating Trooper 3c into Collective. 3342 | -8/Garrison | Assimilating Trooper 3d into Collective. 3354 | -8/Garrison | Assimilating Trooper 3e into Collective. 3401 | -8/Garrison | Lost 9 allies 3434 | -8/Garrison | Assimilating Trooper 3f into Collective. 3616 | -8/Garrison | Discovered new exit (range 10) 3671 | -8/Garrison | Discovered new exit (range 5) 3949 | -8/Garrison | Core integrity fell below 50% 3979 | -8/Garrison | Lost 3 allies 4045 | -8/Garrison | Discovered new exit (range 13) 4068 | -8/Garrison | Installed Relay Interface Framework 4315 | -8/Garrison | Entered Materials 4315 | -8/Materials | Accompanied by 1 ally 4325 | -8/Materials | Assimilating Technician 3a into Collective. 4355 | -8/Materials | Build established: Bothacker-Mutant 4413 | -8/Materials | Assimilating Defender 3b into Collective. 4537 | -8/Materials | Discovered exit to Factory (range 16) 4744 | -8/Materials | Central database locked down 4860 | -8/Materials | Assimilating Defender 3c into Collective. 4912 | -8/Materials | Repaired Hpw. Tractor Beam 5162 | -8/Materials | Identified exit to Garrison 5167 | -8/Materials | Entered Garrison 5167 | -8/Garrison | Accompanied by 4 allies 5225 | -8/Garrison | Triggered checkpoint 5307 | -8/Garrison | Triggered checkpoint 5309 | -8/Garrison | Triggered checkpoint 5397 | -8/Garrison | Triggered checkpoint 5429 | -8/Garrison | Assimilating Commando 3a into Collective. 5533 | -8/Garrison | Discovered exit to Factory (range 4) 5642 | -8/Garrison | Assimilating Hacker 3a into Collective. 5646 | -8/Garrison | Assimilating Hacker 3b into Collective. 5691 | -8/Garrison | Assimilating Commando 3b into Collective. 5716 | -8/Garrison | Lost 7 allies 5755 | -8/Garrison | Triggered checkpoint 5760 | -8/Garrison | Assimilating Pest 3g into Collective. 5789 | -8/Garrison | Triggered checkpoint 5815 | -8/Garrison | Assimilating Commando 3c into Collective. 5856 | -8/Garrison | Assimilating Rogue 3a into Collective. 5859 | -8/Garrison | Assimilating Rogue 3b into Collective. 5867 | -8/Garrison | Assimilating Trooper 3g into Collective. 5919 | -8/Garrison | Triggered checkpoint 5922 | -8/Garrison | Assimilating Pest 3h into Collective. 5938 | -8/Garrison | Discovered exit to Factory (range 11) 5951 | -8/Garrison | Expanded RIF knowledge: Signal Jamming 5971 | -8/Garrison | Entered Factory 5971 | -7/Factory | Accompanied by 5 allies 5971 | -7/Factory | Evolved 2 slots: Utility x1, Weapon x1 6145 | -7/Factory | Identified exit to Garrison 6182 | -7/Factory | Lost 3 allies 6219 | -7/Factory | Fabricated Imp. Plasma Cutter? 6231 | -7/Factory | Assimilating Smith 4a into Collective. 6417 | -7/Factory | Assimilating Serf 4a into Collective. 6426 | -7/Factory | Assimilating Scavenger 4a into Collective. 6528 | -7/Factory | Repaired Hpw. Tractor Beam 6624 | -7/Factory | Assimilating Trooper 4a into Collective. 6690 | -7/Factory | Assimilating Scavenger 4b into Collective. 6697 | -7/Factory | Assimilating Excavator 4a into Collective. 6851 | -7/Factory | Assimilating Hacker 4a into Collective. 6854 | -7/Factory | Assimilating Serf 4b into Collective. 6864 | -7/Factory | Identified exit to Garrison 6944 | -7/Factory | Assimilating Sage 4a into Collective. 6966 | -7/Factory | Entered Garrison 6966 | -7/Garrison | Accompanied by 3 allies 7049 | -7/Garrison | Build established: Mutant 7074 | -7/Garrison | Triggered checkpoint 7074 | -7/Garrison | Triggered checkpoint 7095 | -7/Garrison | Assimilating Virus 4a into Collective. 7126 | -7/Garrison | Lost 5 allies 7130 | -7/Garrison | Triggered checkpoint 7138 | -7/Garrison | Core integrity fell below 50% 7156 | -7/Garrison | Triggered checkpoint 7189 | -7/Garrison | Lost 9 parts (2p2n3u2w) 7194 | -7/Garrison | Released all parts (3) 7201 | -7/Garrison | Core integrity fell below 20% 7207 | -7/Garrison | Destroyed by S-27 Virus with Autogun Last Messages --------------- 07103_ Com. Wheel destroyed. 07117_ Enh. Nuclear Core destroyed. 07122_ Remote Datajack destroyed. 07127_ Detecting nearby RIF Installer. 07128_ Wheel+ destroyed. 07130_ Beams of light sweep through the air. An alarm sounds. 07133_ Relay Coupler [Swarmer] destroyed. 07133_ Critical hit (Burn: +37). 07140_ Lgt. Deuterium Engine destroyed. 07156_ Beams of light sweep through the air. An alarm sounds. 07157_ Critical hit (Burn: +37). 07158_ Imp. Medium Armor Plating destroyed. 07185_ Acquired 15 matter. 07189_ Wheel+ destroyed. 07190_ Acquired Shock Rifle. 07191_ Y-54 Guardian misfires. 07193_ Shock Rifle destroyed. 07194_ Released Relay Coupler [NC]. 07194_ Released Lrg. Storage Unit. 07194_ Released Arm. Wheel. Map ----- +----------------------------------------------------+ | ????????????????????# #??????# #????????????????? | | ????????????????????# #??????# #????????????????? | | ##################### ########+##???????????????? | | ^ #???????????????? | | #### ### ########## ^ #???????????????? | | ???# #?# #????????# ######## #???????????????? | | ?### #?##+##????????# #??????# #???????????????? | | ?#"# #??????????????# #??????+ #???????????????? | | ?#" #??????????????# #??????# ##??????????????? | | ?#" #??????????????+ +?????## #??????????????? | | ?#" #??????????????# ##???## ######?????????? | | ?#"# #??????????????# T#???# % # #?????????# | | ?### #?##+##????????# ##???## =# =! ###+##??? | | ???# #?# #????????# ##+#### *% !!!!! ###""= | | #### ### ##########[ !!**! %= | | = = =!*!!= !% | | #############################" ## *## ###"## | | ???????????????????????????### "# ## ###??? | | ???????????????????????????# #??? | | ???????????????????????????# #??? | | ???????????????????????????# #??? | | ???????????????????????????# #??? | | ???????????????????????????### ## ## ###??? | | ?????????????# ############# ## ^^## ###### | | ?????""""???# sss ^ s | | ?????"???? @ | | ?????""""?????#####"""######## ###### | | ?????????????????????????????## ## ######????? | | ??????????????????????????????# ## #?????????? | | ??????????????????????????????# #######?????????? | | ??????????????????????????????# #???????????????? | | ??????????????????????????????# #???????????????? | | ??????????????????????????????# #???????????????? | | ??????????????????????????????# #???????????????? | | ??????????????????????????????# #???????????????? | | ?????????????????????????????? #???????????????? | | ?????????????????????????????? #???????????????? | | ??????????????????????????????#++#???????????????? | | ?????????????????????????????????????????????????? | | ?????????????????????????????????????????????????? | | ?????????????????????????????????????????????????? | | ?????????????????????????????????????????????????? | | ?????????????????????????????????????????????????? | | ?????????????????????????????????????????????????? | | ?????????????????????????????????????????????????? | | ?????????????????????????????????????????????????? | | ?????????????????????????????????????????????????? | | ?????????????????????????????????????????????????? | | ?????????????????????????????????????????????????? | | ?????????????????????????????????????????????????? | +----------------------------------------------------+ Best States ------------- Heat Dissipation 45 Energy Generation 23 Energy Capacity 430 Matter Stores 450 Matter Capacity 450 Sight Range 16 Terrain Scan Density 10 Armor Coverage 225 Evasion (%) 50 Recoil Reduction 2 Relay Coupler Types 2 Relay Coupler Value 37 Item Schematics ----------------- None Robot Schematics ------------------ None Fabricated ------------ Imp. Plasma Cutter | x2 | -7/Factory | Preloaded Repaired ---------- Adv. Treads | 87% | -8/Materials Hpw. Tractor Beam | 23% | -8/Materials Hpw. Tractor Beam | 43% | -7/Factory Studied --------- Adv. Treads | -8/Materials | Hacked Imp. Ion Engine | -8/Materials | Hacked Wheel | -8/Materials | Hacked Alien Tech Used ----------------- None Achievements -------------- Be The Sidekick Botjacking I, Locutus Join The Dark Side May I Have Another? Mindtrick Not Today, Chutes You Will Be Upgraded Challenges ------------ None Game ------ Seed MachineSubdwellerClaw Manual? 0 Play Time 01:52:40 Cumulative 333.8 hours Start 2026.03.08 @ 17:45:38 End 2026.03.08 @ 20:43:57 Sessions 1 Manual Loads 0 Difficulty Rogue Special Mode None Game No. 99 Rogue 99 Adventurer 0 Explorer 0 Win Type - Total 8 Types 4/0/2/1/0/0/1/0/0/0 Lore% 85 Gallery% 77 Achievement% 49 Wizard Run 0 Options --------- Layout 0 ASCII 0 Keyboard 1 Movement Arrows Keybinds 1 Fullscreen 2 Font 36/Terminus++ Map View 76x50 Zoom Use 0% Tactical HUD 1 Map Filters NONE Filters NONE Steam 1 RUN: 3943aa03-0a2d-4493-87ac-b6b80c0f22cb